bitfinex/quotes_BTCUSD_20250408
["timestamp","ask_amount","ask_price","bid_price","bid_amount"]
[1744118701138,0.2497005,80150.0,80148.0,0.00916726]
[1744118701341,0.012476,80149.0,80148.0,0.00916726]
[1744118701515,0.0001685,80150.0,80142.0,0.012477]
[1744118701745,0.00041674,80149.0,80148.0,0.262014]
[1744118702119,0.00041674,80149.0,80148.0,0.27128427]
[1744118702968,0.00041674,80149.0,80148.0,0.41208376]
[1744118703378,0.00041674,80149.0,80148.0,0.41308376]
[1744118704180,0.00041674,80149.0,80148.0,0.45908376]
[1744118704532,8.4e-07,80153.0,80152.0,0.27654185]
[1744118704736,0.00296777,80169.0,80168.0,0.02701385]
[1744118704945,7.3e-07,80169.0,80168.0,1.90294389]
[1744118705188,0.0001683,80190.0,80187.0,0.27642685]
[1744118705402,0.0001683,80190.0,80187.0,0.55336549]
[1744118706646,0.0001683,80190.0,80187.0,0.412566]
[1744118707125,0.2495813,80188.0,80187.0,0.1598877]
[1744118707329,0.6020513,80188.0,80187.0,0.1598877]
[1744118707533,0.6020513,80188.0,80187.0,0.15068]
[1744118707534,0.72830994,80188.0,80187.0,0.15068]
[1744118707738,0.249442,80179.0,80174.0,0.15064]
[1744118707938,0.249437,80181.0,80174.0,0.15064]
[1744118707939,0.012472,80175.0,80174.0,0.15064]
[1744118708163,0.249479,80167.0,80164.0,0.15064]
[1744118708532,0.0001683,80188.0,80187.0,0.005]
[1744118708733,0.6020513,80188.0,80187.0,0.005]
[1744118709089,0.249432,80183.0,80178.0,0.15064]
[1744118709252,0.249432,80183.0,80174.0,0.005]
[1744118709253,0.261926,80175.0,80174.0,0.005]
[1744118709457,0.34,80178.0,80169.0,0.012473]
[1744118709656,0.352472,80178.0,80169.0,0.261942]
[1744118709857,0.589447,80178.0,80170.0,0.012473]
[1744118710059,0.249451,80177.0,80171.0,0.15064]
[1744118710313,0.012471,80181.0,80171.0,0.15064]
[1744118710314,0.0001683,80190.0,80186.0,0.249417]
[1744118710670,0.0001683,80190.0,80184.0,0.249425]
[1744118710897,0.5905843,80188.0,80182.0,0.261902]
[1744118711029,0.3401683,80188.0,80187.0,0.261886]
[1744118711227,0.3401683,80188.0,80187.0,0.412526]
[1744118711863,0.0001683,80188.0,80187.0,0.412526]
[1744118712309,0.0011683,80188.0,80187.0,0.42194897]
[1744118712827,0.0021683,80188.0,80187.0,0.42194897]
[1744118713238,0.0011683,80188.0,80187.0,0.16006297]
[1744118713446,0.3411683,80188.0,80187.0,0.16106297]
[1744118713975,0.0021683,80188.0,80187.0,0.16106297]
[1744118714635,0.0001683,80188.0,80187.0,0.16106297]
[1744118715158,0.3526383,80188.0,80187.0,0.16106297]
[1744118715336,0.6020513,80188.0,80187.0,0.15164]
[1744118715772,0.6020513,80188.0,80165.0,0.261957]
[1744118715773,0.601933,80173.0,80172.0,0.1506]
[1744118715956,0.601933,80173.0,80151.0,0.98816]
[1744118715957,0.012475,80160.0,80151.0,0.98816]
[1744118716160,0.24949,80164.0,80158.0,0.249507]
[1744118716289,0.249461,80173.0,80166.0,0.012474]
[1744118716504,0.249466,80171.0,80167.0,0.1506]
[1744118716702,0.249476,80168.0,80167.0,0.1506]
[1744118717126,0.261949,80168.0,80167.0,0.1506]
[1744118717346,0.601949,80168.0,80167.0,0.1506]
[1744118717769,0.72820764,80168.0,80167.0,0.1506]
[1744118718133,0.72820764,80168.0,80146.0,0.6762514]
[1744118718134,0.249525,80152.0,80146.0,0.4142314]
[1744118718383,0.249525,80152.0,80151.0,1.14805452]
[1744118718873,0.013473,80168.0,80155.0,0.012475]
[1744118719129,0.013473,80168.0,80167.0,0.261952]
[1744118719130,0.001,80168.0,80167.0,0.261952]
[1744118719368,0.001,80168.0,80167.0,0.412552]
[1744118719826,0.262949,80168.0,80167.0,0.1506]
[1744118720054,0.602949,80168.0,80167.0,0.1506]
[1744118720292,0.262001,80152.0,80151.0,0.15989452]
[1744118720801,0.249525,80152.0,80151.0,0.15989452]
[1744118721024,0.001,80152.0,80151.0,0.42789952]
[1744118721248,0.001,80152.0,80151.0,0.41542352]
[1744118721479,0.589508,80158.0,80151.0,0.15989452]
[1744118721725,0.589508,80158.0,80155.0,0.007]
[1744118721948,0.013473,80168.0,80159.0,0.012475]
[1744118722174,0.249489,80164.0,80159.0,0.261978]
[1744118722396,0.34,80166.0,80160.0,0.012475]
[1744118722603,0.352474,80166.0,80159.0,0.261977]
[1744118722754,0.2495,80161.0,80153.0,0.012476]
[1744118723001,0.374165,80179.0,80153.0,0.012476]
[1744118723002,0.40094195,80190.0,80180.0,0.249438]
[1744118723171,0.0001683,80190.0,80184.0,0.012471]
[1744118723379,0.0001683,80190.0,80180.0,0.261907]
[1744118723582,0.249422,80186.0,80181.0,0.012471]
[1744118723792,0.0001683,80190.0,80187.0,0.261886]
[1744118724412,0.0081683,80188.0,80187.0,0.40268549]
[1744118724618,0.004,80199.0,80187.0,0.56750089]
[1744118724830,0.004,80199.0,80185.0,0.24942]
[1744118724831,0.0001684,80219.0,80214.0,0.261799]
[1744118724832,0.0001254,80215.0,80214.0,0.261799]
[1744118725079,0.0001254,80215.0,80214.0,1.95562989]
[1744118725332,0.0001684,80219.0,80218.0,0.27632685]
[1744118725587,0.0001684,80219.0,80218.0,0.40258549]
[1744118726235,8e-07,80220.0,80219.0,0.02700585]
[1744118726481,0.00012578,80220.0,80219.0,0.13872364]
[1744118726776,0.00012578,80220.0,80219.0,0.03326337]
[1744118727437,0.00012578,80220.0,80219.0,0.17406286]
[1744118727767,0.00012578,80220.0,80219.0,0.17655575]
[1744118727972,0.00012578,80220.0,80219.0,0.03326337]
[1744118728199,0.00012578,80220.0,80219.0,0.02679837]
[1744118728690,0.00112578,80220.0,80219.0,0.03279837]
[1744118729137,0.01359078,80220.0,80219.0,0.03279837]
[1744118729408,0.00112578,80220.0,80219.0,0.03279837]
[1744118729636,0.00012578,80220.0,80219.0,0.02679837]
[1744118729858,0.00012578,80220.0,80219.0,0.04326337]
[1744118730366,0.00012578,80220.0,80219.0,0.02479837]
[1744118730597,0.01259078,80220.0,80219.0,0.019563]
[1744118730830,0.00012578,80220.0,80219.0,0.028028]
[1744118731063,0.00012578,80220.0,80219.0,0.28686465]
[1744118731291,0.00012578,80220.0,80219.0,0.26683665]
[1744118731532,0.00012578,80220.0,80219.0,0.27930165]
[1744118731785,0.00012578,80220.0,80219.0,0.27530165]
[1744118732005,0.00012578,80220.0,80219.0,0.27830165]
[1744118734645,0.00012578,80220.0,80219.0,0.28987423]
[1744118735535,0.261755,80228.0,80221.0,0.249308]
[1744118735829,0.249298,80226.0,80223.0,0.249304]
[1744118736035,0.016464,80229.0,80223.0,0.261768]
[1744118736451,0.004,80229.0,80228.0,0.261753]
[1744118736874,0.004,80229.0,80227.0,0.261756]
[1744118737085,0.004,80229.0,80226.0,0.249293]
[1744118737529,0.352465,80224.0,80223.0,0.001]
[1744118737746,0.352465,80224.0,80210.0,0.249344]
[1744118737747,0.012466,80215.0,80210.0,0.249344]
[1744118737963,0.261793,80217.0,80211.0,0.261808]
[1744118738200,0.012466,80215.0,80208.0,0.24935]
[1744118738418,0.012466,80215.0,80201.0,0.012468]
[1744118738628,0.012466,80213.0,80205.0,0.012468]
[1744118738845,0.249361,80205.0,80204.0,0.15388]
[1744118739524,0.27352614,80205.0,80204.0,0.15388]
[1744118739733,0.261835,80203.0,80202.0,0.00012498]
[1744118740383,0.249367,80203.0,80202.0,0.00012498]
[1744118740588,0.01169714,80205.0,80202.0,0.00012498]
[1744118740847,0.01169714,80205.0,80204.0,0.261832]
[1744118741023,0.4118,80232.0,80204.0,0.261832]
[1744118741024,0.249302,80224.0,80212.0,0.261805]
[1744118741230,0.249333,80214.0,80212.0,0.403219]
[1744118741433,0.249327,80216.0,80212.0,0.15388]
[1744118741634,0.24932,80218.0,80213.0,0.012466]
[1744118741835,0.249319,80219.0,80213.0,0.249336]
[1744118742036,0.249312,80221.0,80214.0,0.249332]
[1744118742253,0.261778,80221.0,80212.0,0.166346]
[1744118742455,0.249317,80219.0,80213.0,0.249336]
[1744118742658,0.012465,80221.0,80213.0,0.249336]
[1744118742868,0.261779,80220.0,80216.0,0.249326]
[1744118743080,0.261742,80232.0,80226.0,0.249295]
[1744118743271,0.01180578,80226.0,80225.0,0.261761]
[1744118743505,0.24929,80228.0,80224.0,0.012465]
[1744118743710,0.012464,80228.0,80215.0,0.012466]
[1744118743855,0.004,80229.0,80223.0,0.012465]
[1744118743856,0.344,80229.0,80223.0,0.012465]
[1744118744057,0.012464,80226.0,80223.0,0.249304]
[1744118744281,0.249295,80228.0,80226.0,0.001]
[1744118744437,0.249295,80228.0,80224.0,0.2493]
[1744118744883,0.016464,80229.0,80224.0,0.2493]
[1744118744884,0.004,80229.0,80228.0,0.261753]
[1744118745090,0.013,80229.0,80228.0,0.42493916]
[1744118745295,0.013,80229.0,80228.0,0.90573865]
[1744118745490,0.013,80229.0,80228.0,0.95383865]
[1744118745695,0.004,80229.0,80228.0,0.61383865]
[1744118746306,0.004,80229.0,80228.0,0.47303916]
[1744118746709,0.004,80229.0,80228.0,0.48758001]
[1744118747077,0.004,80229.0,80228.0,0.48958001]
[1744118747251,0.004,80229.0,80228.0,0.61583865]
[1744118747459,0.004,80229.0,80228.0,0.62083865]
[1744118747617,0.004,80229.0,80228.0,0.61583865]
[1744118748228,0.004,80229.0,80228.0,0.28005916]
[1744118748488,0.004,80229.0,80228.0,0.27805916]
[1744118748702,0.005,80229.0,80228.0,0.02330616]
[1744118748921,0.005,80229.0,80228.0,0.27259516]
[1744118749121,0.005,80229.0,80228.0,0.28505916]
[1744118749272,0.004,80229.0,80228.0,0.27805916]
[1744118749490,0.004,80229.0,80228.0,0.42993916]
[1744118749838,0.004,80229.0,80228.0,0.43493916]
[1744118751752,0.004,80229.0,80228.0,0.91573865]
[1744118753714,0.004,80229.0,80228.0,0.42185865]
[1744118753913,0.004,80229.0,80228.0,0.57569865]
[1744118754813,0.02320661,80240.0,80228.0,0.57569865]
[1744118754814,9.1e-07,80240.0,80239.0,0.249255]
[1744118755020,0.0001684,80250.0,80249.0,0.27622585]
[1744118755218,0.0001684,80250.0,80249.0,0.70632449]
[1744118755402,0.00058491,80250.0,80249.0,0.70632449]
[1744118756258,0.00058491,80250.0,80249.0,0.71557349]
[1744118756660,0.00058491,80250.0,80249.0,0.72057349]
[1744118756835,0.00058491,80250.0,80249.0,1.13480489]
[1744118757897,9.1e-07,80250.0,80249.0,1.52480489]
[1744118758331,4e-07,80258.0,80257.0,0.311658]
[1744118758533,2e-07,80268.0,80267.0,0.42616685]
[1744118758760,2e-07,80268.0,80267.0,0.70626549]
[1744118758880,0.00012513,80268.0,80267.0,0.70626549]
[1744118759274,1.3e-07,80268.0,80267.0,1.04626549]
[1744118759519,1.3e-07,80268.0,80267.0,1.55419689]
[1744118760134,0.00100013,80268.0,80267.0,1.55419689]
[1744118760510,0.00100013,80268.0,80267.0,1.16659689]
[1744118761371,0.00100013,80268.0,80267.0,0.54049004]
[1744118761567,0.00100013,80268.0,80267.0,0.15372]
[1744118761744,0.012458,80268.0,80267.0,0.15372]
[1744118761918,0.21995926,80269.0,80267.0,0.15372]
[1744118762228,0.249196,80258.0,80257.0,1.14096]
[1744118762423,0.249196,80258.0,80257.0,1.14108493]
[1744118763202,0.261655,80258.0,80257.0,1.14108493]
[1744118763443,0.261655,80258.0,80257.0,0.15384493]
[1744118764080,0.261655,80258.0,80257.0,0.00012493]
[1744118764081,0.72791364,80258.0,80257.0,0.00012493]
[1744118764265,0.73934739,80258.0,80257.0,0.00012493]
[1744118765157,0.73934739,80258.0,80257.0,9.3e-07]
[1744118765770,1.15114739,80258.0,80257.0,9.3e-07]
[1744118766013,1.14914739,80258.0,80257.0,9.3e-07]
[1744118766418,1.15314739,80258.0,80257.0,9.3e-07]
[1744118766837,0.601717,80239.0,80238.0,0.15372]
[1744118767045,0.249326,80216.0,80215.0,0.98712]
[1744118767245,0.249323,80217.0,80215.0,1.14084]
[1744118767474,0.249321,80218.0,80215.0,1.15001885]
[1744118767624,0.24932,80219.0,80215.0,1.15001885]
[1744118767625,0.249324,80217.0,80215.0,1.15001885]
[1744118768038,0.24932,80219.0,80209.0,0.11060476]
[1744118768039,0.249345,80210.0,80209.0,0.26432476]
[1744118768233,0.249345,80210.0,80209.0,0.26474127]
[1744118768725,0.249342,80211.0,80209.0,0.26474127]
[1744118768929,0.249342,80212.0,80209.0,0.26474127]
[1744118769135,0.249325,80217.0,80212.0,0.261803]
[1744118769415,0.001,80216.0,80215.0,0.009]
[1744118769566,0.001,80216.0,80215.0,0.012466]
[1744118769777,0.001,80216.0,80204.0,0.261829]
[1744118769950,0.001,80216.0,80209.0,0.40548251]
[1744118770151,0.249339,80212.0,80209.0,0.15613651]
[1744118770353,0.249333,80214.0,80209.0,0.15613651]
[1744118770575,0.249333,80214.0,80209.0,0.16551829]
[1744118770779,0.249333,80214.0,80209.0,0.16351829]
[1744118770950,0.003,80216.0,80215.0,0.012466]
[1744118771155,0.003,80216.0,80215.0,0.15326549]
[1744118771364,0.003,80216.0,80215.0,0.30575824]
[1744118771569,0.003,80216.0,80215.0,0.30326549]
[1744118771990,0.249241,80244.0,80238.0,0.012462]
[1744118772209,0.249241,80244.0,80239.0,0.15376]
[1744118772420,0.00938639,80246.0,80223.0,0.012465]
[1744118772421,0.249291,80228.0,80223.0,0.012465]
[1744118772572,0.012462,80238.0,80230.0,0.00933409]
[1744118772776,0.40005184,80240.0,80221.0,0.15376]
[1744118772777,0.012463,80232.0,80221.0,0.15376]
[1744118772972,0.249296,80226.0,80221.0,0.15376]
[1744118773172,0.249259,80238.0,80226.0,0.012464]
[1744118773370,0.249255,80240.0,80230.0,0.012464]
[1744118773569,0.012462,80242.0,80221.0,0.15417651]
[1744118773570,0.0462,80267.0,80266.0,0.012458]
[1744118773796,0.00943554,80267.0,80265.0,0.15376]
[1744118773997,0.261627,80267.0,80265.0,0.15376]
[1744118774270,0.249169,80267.0,80265.0,0.15376]
[1744118774502,0.012456,80279.0,80265.0,0.15376]
[1744118774657,0.24917,80267.0,80265.0,0.15376]
[1744118774857,0.249164,80269.0,80266.0,0.15376]
[1744118775129,0.249165,80269.0,80266.0,0.15376]
[1744118775326,0.249159,80271.0,80266.0,0.15376]
[1744118775523,0.001,80267.0,80266.0,0.15376]
[1744118776107,0.589153,80272.0,80266.0,0.15376]
[1744118776318,0.249156,80271.0,80266.0,0.15376]
[1744118776684,0.261623,80268.0,80266.0,0.15376]
[1744118776804,0.001,80269.0,80266.0,0.15376]
[1744118776998,0.001,80269.0,80267.0,0.249166]
[1744118777203,0.249165,80268.0,80266.0,0.15376]
[1744118777399,0.001,80269.0,80267.0,0.249168]
[1744118777600,0.001,80269.0,80266.0,0.15376]
[1744118777805,0.012458,80267.0,80266.0,0.15376]
[1744118778063,0.249165,80268.0,80266.0,0.15376]
[1744118779313,0.249183,80262.0,80261.0,0.00946268]
[1744118779522,0.249181,80263.0,80261.0,0.16322268]
[1744118779701,0.012459,80262.0,80261.0,0.15376]
[1744118780523,0.012459,80262.0,80248.0,1.236587]
[1744118780524,0.24921,80254.0,80250.0,0.15376]
[1744118780860,0.249204,80256.0,80250.0,0.15376]
[1744118781171,0.261677,80252.0,80250.0,0.15376]
[1744118781393,0.249213,80253.0,80250.0,0.41224728]
[1744118781598,0.249215,80252.0,80250.0,0.16302728]
[1744118782449,0.249215,80252.0,80250.0,0.16902728]
[1744118782847,0.261678,80251.0,80250.0,0.16676]
[1744118783018,0.72793664,80251.0,80250.0,0.007]
[1744118783232,0.72793664,80251.0,80240.0,0.15372]
[1744118783233,0.261711,80241.0,80240.0,0.15372]
[1744118783851,0.261711,80241.0,80215.0,0.15372]
[1744118783852,0.601733,80234.0,80215.0,0.15372]
[1744118784052,0.72799164,80234.0,80220.0,0.00918811]
[1744118784401,0.72799164,80234.0,80215.0,0.15372]
[1744118784739,0.47872164,80234.0,80215.0,0.15372]
[1744118784938,0.72799164,80234.0,80215.0,0.15372]
[1744118785727,0.73699164,80234.0,80233.0,0.0013364]
[1744118786768,0.74399164,80234.0,80233.0,0.0023364]
[1744118789403,0.016,80234.0,80233.0,0.4179124]
[1744118789612,0.016,80234.0,80233.0,0.55871189]
[1744118789931,0.25852446,80276.0,80252.0,0.261674]
[1744118790118,0.012457,80273.0,80252.0,0.415514]
[1744118790322,0.24915,80273.0,80252.0,0.415514]
[1744118790523,0.249163,80269.0,80252.0,0.415514]
[1744118790689,0.589166,80268.0,80252.0,0.415514]
[1744118790890,0.249166,80268.0,80252.0,0.415514]
[1744118791133,0.249166,80268.0,80252.0,0.261674]
[1744118791348,0.34,80267.0,80252.0,0.415514]
[1744118791944,0.589168,80267.0,80252.0,0.415514]
[1744118792101,0.589168,80267.0,80252.0,0.42475536]
[1744118792305,0.589168,80267.0,80252.0,0.43075536]
[1744118792645,0.34,80268.0,80252.0,0.43575536]
[1744118793234,0.00938346,80276.0,80252.0,0.43575536]
[1744118793432,0.012458,80264.0,80252.0,0.43575536]
[1744118793988,0.012459,80259.0,80252.0,0.17408136]
[1744118794191,0.249209,80254.0,80252.0,0.02024136]
[1744118794393,0.26179576,80253.0,80252.0,0.02024136]
[1744118795285,0.24933576,80253.0,80252.0,0.02024136]
[1744118796027,0.24933576,80253.0,80252.0,0.01524136]
[1744118796181,0.24933576,80253.0,80252.0,0.01124136]
[1744118796583,0.24933576,80253.0,80252.0,0.01424136]
[1744118796789,0.26179576,80253.0,80252.0,0.01424136]
[1744118798140,0.24933576,80253.0,80252.0,0.01424136]
[1744118801257,0.7280544,80253.0,80252.0,0.005]
[1744118801493,0.7280544,80253.0,80211.0,0.0479]
[1744118801494,0.012463,80236.0,80235.0,0.15384]
[1744118801693,0.38798564,80236.0,80235.0,0.15384]
[1744118801866,0.72798564,80236.0,80235.0,0.15384]
[1744118802600,0.73298564,80236.0,80235.0,0.15384]
[1744118803187,0.73298564,80236.0,80233.0,0.00971086]
[1744118803188,0.601733,80234.0,80233.0,0.16355086]
[1744118803383,0.72799164,80234.0,80233.0,0.16355086]
[1744118804113,0.72799164,80234.0,80233.0,0.00971086]
[1744118804315,0.005,80236.0,80235.0,0.249267]
[1744118804516,0.005,80236.0,80235.0,0.26173]
[1744118804717,0.249256,80239.0,80235.0,0.26173]
[1744118805070,0.005,80234.0,80233.0,0.00971086]
[1744118805222,0.005,80234.0,80233.0,0.25898386]
[1744118805456,0.005,80234.0,80233.0,0.00971086]
[1744118805656,0.001,80236.0,80233.0,0.00971086]
[1744118805861,0.249265,80236.0,80233.0,0.25898386]
[1744118806067,0.249258,80238.0,80235.0,0.249267]
[1744118806596,0.249261,80237.0,80234.0,0.249269]
[1744118807135,0.249258,80238.0,80235.0,0.249267]
[1744118807336,0.249261,80237.0,80234.0,0.249269]
[1744118807537,0.249258,80238.0,80235.0,0.249267]
[1744118807733,0.249258,80238.0,80233.0,0.00971086]
[1744118808048,0.26173,80235.0,80234.0,0.15384]
[1744118809205,0.38798864,80235.0,80234.0,0.15384]
[1744118809402,0.72898864,80235.0,80234.0,0.15384]
[1744118809541,0.601733,80234.0,80233.0,0.0003364]
[1744118809749,0.72799164,80234.0,80233.0,0.0003364]
[1744118810892,0.72899164,80234.0,80233.0,0.0003364]
[1744118811791,0.72799164,80234.0,80233.0,0.0003364]
[1744118812108,0.73199164,80234.0,80233.0,0.0003364]
[1744118812417,0.73299164,80234.0,80233.0,0.0003364]
[1744118814468,0.73299164,80234.0,80208.0,0.2621548]
[1744118814469,0.601815,80209.0,80208.0,0.0003368]
[1744118814668,0.72807364,80209.0,80208.0,0.0003368]
[1744118814866,0.71560664,80209.0,80208.0,0.0003368]
[1744118815300,0.72807364,80209.0,80208.0,0.0003368]
[1744118815808,0.72807364,80209.0,80208.0,0.00175331]
[1744118815951,0.001,80209.0,80208.0,0.00175331]
[1744118816726,0.001,80209.0,80208.0,0.26357131]
[1744118817161,0.001,80209.0,80208.0,1.4363308]
[1744118817363,0.39993048,80240.0,80229.0,0.012464]
[1744118817364,0.24927,80235.0,80229.0,0.012464]
[1744118817569,0.00965897,80234.0,80230.0,0.15388]
[1744118817767,0.24926,80238.0,80233.0,0.249271]
[1744118817948,0.41239148,80250.0,80234.0,0.012463]
[1744118818124,0.249242,80244.0,80239.0,0.249254]
[1744118818320,0.00960603,80244.0,80243.0,0.261701]
[1744118818530,0.249224,80249.0,80242.0,0.012462]
[1744118818531,0.64915348,80250.0,80242.0,0.012462]
[1744118818730,0.012459,80259.0,80235.0,0.0340449]
[1744118818731,0.39993048,80260.0,80249.0,0.012461]
[1744118818975,0.249203,80256.0,80250.0,0.15388]
[1744118819157,0.00979889,80260.0,80256.0,0.249199]
[1744118819377,0.00979889,80260.0,80255.0,0.01246]
[1744118819591,0.34979889,80260.0,80256.0,0.249202]
[1744118819734,0.34979889,80260.0,80255.0,0.00914264]
[1744118819937,0.249195,80259.0,80254.0,0.249207]
[1744118820161,0.25898989,80260.0,80254.0,0.261666]
[1744118820375,0.00012479,80260.0,80259.0,0.012459]
[1744118820697,0.00012479,80260.0,80255.0,0.00952616]
[1744118820900,0.249214,80253.0,80246.0,0.012461]
[1744118821021,0.249215,80252.0,80243.0,0.012462]
[1744118821384,0.01246,80251.0,80250.0,0.00938398]
[1744118821601,0.249233,80246.0,80235.0,0.012463]
[1744118821801,0.24923,80247.0,80246.0,0.15304]
[1744118822003,0.24923,80247.0,80239.0,1.236814]
[1744118822206,0.249214,80252.0,80250.0,0.003]
[1744118822335,0.249218,80251.0,80250.0,0.004]
[1744118822532,0.249218,80251.0,80250.0,0.15704]
[1744118822811,0.261678,80251.0,80250.0,0.15704]
[1744118822951,0.249218,80251.0,80250.0,0.15704]
[1744118823154,0.261678,80251.0,80250.0,0.15704]
[1744118823348,0.249218,80251.0,80250.0,0.15404]
[1744118823572,0.2492,80257.0,80250.0,0.15304]
[1744118823775,0.2492,80257.0,80251.0,0.249218]
[1744118824059,0.2492,80257.0,80250.0,0.15304]
[1744118824295,0.34,80259.0,80254.0,0.249206]
[1744118824495,0.589194,80259.0,80252.0,0.249212]
[1744118824696,0.249206,80255.0,80250.0,0.15304]
[1744118825034,0.01246,80252.0,80249.0,0.15304]
[1744118825239,0.249218,80252.0,80251.0,0.001]
[1744118825450,0.249218,80252.0,80249.0,0.15304]
[1744118825451,0.249201,80257.0,80249.0,0.15304]
[1744118825647,0.249215,80252.0,80249.0,0.15304]
[1744118825862,0.249218,80251.0,80249.0,0.00397487]
[1744118826067,0.249218,80251.0,80245.0,0.21922073]
[1744118826267,0.249224,80249.0,80246.0,0.15304]
[1744118826505,0.249228,80248.0,80246.0,0.15304]
[1744118826706,0.249221,80250.0,80246.0,0.15304]
[1744118826909,0.249225,80249.0,80246.0,0.15304]
[1744118827040,0.249227,80248.0,80246.0,0.15304]
[1744118827446,0.249227,80248.0,80246.0,0.15604]
[1744118827655,0.249228,80248.0,80246.0,0.15504]
[1744118827839,0.249228,80248.0,80246.0,0.04829348]
[1744118828040,0.249228,80248.0,80246.0,0.04929348]
[1744118828446,0.012461,80247.0,80246.0,0.0142487]
[1744118828650,0.012461,80247.0,80246.0,0.0172487]
[1744118829072,0.012461,80247.0,80246.0,0.008]
[1744118829508,0.47871964,80247.0,80246.0,0.008]
[1744118829913,0.249291,80228.0,80224.0,0.249301]
[1744118830210,0.012464,80231.0,80230.0,0.153]
[1744118831274,0.261744,80231.0,80230.0,0.15341651]
[1744118831457,0.261744,80231.0,80230.0,0.15441651]
[1744118832693,0.249277,80235.0,80230.0,0.15441651]
[1744118832694,0.12625864,80247.0,80238.0,0.012462]
[1744118832903,0.12625864,80247.0,80235.0,0.26173]
[1744118832904,0.249249,80241.0,80235.0,0.26173]
[1744118833112,0.249248,80242.0,80235.0,0.249267]
[1744118833449,0.249253,80240.0,80236.0,0.249263]
[1744118833661,0.34,80245.0,80244.0,0.249239]
[1744118833855,0.34,80248.0,80242.0,0.012462]
[1744118834062,0.34,80248.0,80241.0,0.249245]
[1744118834063,0.24924,80244.0,80241.0,0.249245]
[1744118834554,0.249236,80245.0,80242.0,0.249245]
[1744118834782,0.007,80245.0,80244.0,0.001]
[1744118835089,0.007,80245.0,80244.0,0.2627]
[1744118835205,0.24919,80260.0,80255.0,0.249202]
[1744118835405,0.249175,80265.0,80261.0,0.249187]
[1744118835656,0.249181,80263.0,80256.0,0.15304]
[1744118835861,0.249183,80262.0,80257.0,0.249196]
[1744118836064,0.012458,80267.0,80257.0,0.249199]
[1744118836235,0.249183,80263.0,80258.0,0.249193]
[1744118836663,0.249183,80263.0,80254.0,0.02181438]
[1744118836664,0.261649,80260.0,80259.0,0.15304]
[1744118836814,0.01246,80252.0,80249.0,0.99648358]
[1744118837018,0.249221,80250.0,80249.0,0.99648358]
[1744118837279,0.249221,80250.0,80249.0,1.14952358]
[1744118837485,0.261682,80250.0,80249.0,1.14036]
[1744118837891,0.261682,80250.0,80228.0,0.012464]
[1744118837892,0.012462,80239.0,80228.0,0.012464]
[1744118838135,0.012462,80239.0,80225.0,0.98728]
[1744118838136,0.24929,80228.0,80225.0,0.98728]
[1744118838314,0.249283,80230.0,80229.0,0.153]
[1744118838840,0.249283,80230.0,80225.0,0.98728]
[1744118838841,0.249295,80226.0,80225.0,0.98728]
[1744118839007,0.249295,80226.0,80225.0,1.14028]
[1744118839639,0.249295,80226.0,80225.0,1.14069651]
[1744118840192,0.249295,80226.0,80225.0,1.14969651]
[1744118840600,0.249295,80226.0,80225.0,1.15669651]
[1744118840826,0.249295,80226.0,80225.0,1.14769651]
[1744118841028,0.250295,80226.0,80225.0,1.15469651]
[1744118841232,0.001,80226.0,80225.0,1.14769651]
[1744118841430,0.250295,80226.0,80225.0,1.14769651]
[1744118841630,0.012463,80237.0,80225.0,1.39299451]
[1744118841790,0.352461,80244.0,80225.0,1.15616051]
[1744118841791,0.012463,80235.0,80225.0,1.15616051]
[1744118842025,0.261759,80226.0,80225.0,1.14669651]
[1744118843138,0.261759,80226.0,80225.0,1.14069651]
[1744118843366,0.261759,80226.0,80225.0,0.99069651]
[1744118843915,0.261759,80226.0,80225.0,0.99369651]
[1744118844247,0.261759,80226.0,80225.0,0.99069651]
[1744118844520,0.261759,80226.0,80225.0,0.99369651]
[1744118845988,0.261759,80226.0,80225.0,0.00641651]
[1744118846187,0.249289,80228.0,80225.0,0.00641651]
[1744118846411,0.34,80233.0,80230.0,0.012464]
[1744118846619,0.249282,80231.0,80227.0,0.012464]
[1744118846819,0.249283,80230.0,80227.0,0.249289]
[1744118847015,0.249294,80227.0,80225.0,0.00641651]
[1744118847220,0.249292,80228.0,80225.0,0.00041651]
[1744118847425,0.249295,80226.0,80225.0,0.00041651]
[1744118847627,0.249295,80226.0,80225.0,0.00341651]
[1744118847628,0.261759,80226.0,80225.0,0.00341651]
[1744118848223,0.38801764,80226.0,80225.0,0.00341651]
[1744118848559,0.72801764,80226.0,80225.0,0.00341651]
[1744118849339,0.72801764,80226.0,80225.0,0.00041651]
[1744118849718,0.72801764,80226.0,80225.0,0.00641651]
[1744118857083,1.13981764,80226.0,80225.0,0.00641651]
[1744118857797,1.13981764,80226.0,80225.0,0.00341651]
[1744118858263,1.14681764,80226.0,80225.0,0.00441651]
[1744118859248,1.14681764,80226.0,80225.0,0.00141651]
[1744118859474,1.15081764,80226.0,80225.0,0.00141651]
[1744118860425,0.011,80226.0,80225.0,0.26317851]
[1744118860683,0.260295,80226.0,80225.0,0.00141651]
[1744118860918,0.600295,80226.0,80225.0,0.00141651]
[1744118861159,0.73901764,80226.0,80225.0,0.00141651]
[1744118863043,0.351,80226.0,80225.0,0.00141651]
[1744118863284,0.351,80226.0,80225.0,0.26317851]
[1744118863532,0.011,80226.0,80225.0,0.26317851]
[1744118864010,0.011,80226.0,80225.0,0.25071451]
[1744118864269,0.260295,80226.0,80225.0,0.00141651]
[1744118864526,0.011,80226.0,80225.0,0.00141651]
[1744118865011,0.011,80226.0,80225.0,0.26317851]
[1744118866400,0.260295,80226.0,80225.0,0.00141651]
[1744118866858,0.73901764,80226.0,80225.0,0.00141651]
[1744118867563,0.011,80226.0,80225.0,0.26317851]
[1744118868691,0.004,80226.0,80225.0,0.26217851]
[1744118869086,0.004,80226.0,80225.0,0.451578]
[1744118869087,0.008,80226.0,80225.0,0.451578]
[1744118869465,0.249214,80253.0,80250.0,0.24922]
[1744118869668,0.589214,80252.0,80251.0,0.15184]